[Event "23rd OIBM 2019"]
[Site "Gmund am Tegernsee"]
[Date "2019.10.30"]
[Round "5.24"]
[White "Kaiser, Elmar"]
[Black "Hess, Max"]
[Result "0-1"]
[ECO "A48"]
[WhiteElo "2131"]
[BlackElo "2373"]
[Annotator "ChessBase"]
[PlyCount "78"]
[EventDate "2019.10.17"]
[EventType "swiss"]
[EventCountry "GER"]
[SourceTitle "playchess.com"]
[Source "ChessBase"]
[SourceQuality "1"]
[TimeControl "40/5400+30:1800+30"]

1. d4 {[%emt 0:01:06]} Nf6 {[%emt 0:00:00]} 2. Nf3 {[%emt 0:00:35]} g6 {[%emt 0:00:00]} 3. c4 {[%emt 0:00:06]} Bg7 {[%emt 0:00:00]} 4. Nc3 {[%emt 0:00:17]} O-O {[%emt 0:00:01]} 5. Bf4 {[%emt 0:00:26]} d6 {[%emt 0:01:29]} 6. e3 {[%emt 0:00:18]} Nc6 {[%emt 0:01:27]} 7. d5 {[%emt 0:07:53]} e5 {[%emt 0:01:57]} 8. Bg5 {[%emt 0:03:26]} Ne7 {[%emt 0:00:26]} 9. e4 {[%emt 0:06:04]} h6 {[%emt 0:01:22]} 10. Bd2 {[%emt 0:04:43]} c6 {[%emt 0:01:06]} 11. Qc1 {[%emt 0:02:11]} b5 {[%emt 0:10:09]} 12. dxc6 {[%emt 0:05:20]} b4 {[%emt 0:02:24]} 13. Nd5 {[%emt 0:01:38]} Nxe4 {[%emt 0:02:31]} 14. c7 {[%emt 0:04:58]} Qd7 {[%emt 0:02:51]} 15. Bxh6 {[%emt 0:07:06]} Nxd5 {[%emt 0:01:19]} 16. Bxg7 {[%emt 0:02:54]} Kxg7 {[%emt 0:00:04]} 17. cxd5 {[%emt 0:00:04]} Bb7 {[%emt 0:01:30]} 18. Bc4 {[%emt 0:08:27]} Qxc7 {[%emt 0:04:36]} 19. O-O {[%emt 0:01:09]} Rac8 {[%emt 0:01:38]} 20. b3 {[%emt 0:02:19]} Qb6 {[%emt 0:06:08]} 21. Qe3 {[%emt 0:02:56]} Qxe3 {[%emt 0:02:21]} 22. fxe3 {[%emt 0:00:04]} a5 {[%emt 0:04:23]} 23. a3 {[%emt 0:01:02]} Ra8 {[%emt 0:01:37]} 24. Rfd1 {[%emt 0:14:01]} Nc3 {[%emt 0:05:12]} 25. Rd2 {[%emt 0:01:17]} Rfc8 {[%emt 0:05:35]} 26. Ne1 {[%emt 0:00:39]} e4 {[%emt 0:10:30]} 27. Nc2 {[%emt 0:09:45]} bxa3 {[%emt 0:00:48]} 28. Nxa3 {[%emt 0:00:48]} Rc5 {[%emt 0:04:12]} 29. Nc2 {[%emt 0:05:51]} Rac8 {[%emt 0:12:34]} 30. Nd4 {[%emt 0:03:27]} Bxd5 {[%emt 0:00:05]} 31. Bxd5 {[%emt 0:02:31]} Nxd5 {[%emt 0:00:12]} 32. Kf2 {[%emt 0:00:06]} Kf6 {[%emt 0:00:20]} 33. Rda2 {[%emt 0:00:52]} Rc3 {[%emt 0:05:01]} 34. Rxa5 {[%emt 0:00:44]} Nxe3 {[%emt 0:00:07]} 35. h3 {[%emt 0:00:17]} d5 {[%emt 0:02:10]} 36. Re1 {[%emt 0:01:44]} Nc2 {[%emt 0:00:24]} 37. Rd1 {[%emt 0:00:10]} Nb4 {[%emt 0:03:09]} 38. Rb5 {[%emt 0:00:59]} Nd3+ {[%emt 0:01:13]} 39. Kg1 {[%emt 0:00:22]} Rc1 {[%emt 0:00:58]} 0-1

[Event "23rd OIBM 2019"]
[Site "Gmund am Tegernsee"]
[Date "2019.10.30"]
[Round "5.25"]
[White "Zude, Arno"]
[Black "Maruntis, Patrik-Robert"]
[Result "1-0"]
[ECO "B70"]
[WhiteElo "2372"]
[BlackElo "1707"]
[Annotator "ChessBase"]
[PlyCount "61"]
[EventDate "2019.10.17"]
[EventType "swiss"]
[EventCountry "GER"]
[SourceTitle "playchess.com"]
[Source "ChessBase"]
[SourceQuality "1"]
[TimeControl "40/5400+30:1800+30"]

1. e4 {[%emt 0:00:00]} c5 {[%emt 0:00:00]} 2. Nf3 {[%emt 0:00:00]} d6 {[%emt 0:00:00]} 3. d4 {[%emt 0:00:00]} cxd4 {[%emt 0:00:00]} 4. Nxd4 {[%emt 0:00:00]} Nf6 {[%emt 0:00:00]} 5. Nc3 {[%emt 0:00:05]} g6 {[%emt 0:00:00]} 6. Be2 {[%emt 0:02:28]} Bg7 {[%emt 0:00:14]} 7. O-O {[%emt 0:00:15]} O-O {[%emt 0:00:31]} 8. Bg5 {[%emt 0:01:16]} Nbd7 {[%emt 0:05:02]} 9. Re1 {[%emt 0:02:50]} a6 {[%emt 0:00:42]} 10. Bf1 {[%emt 0:01:34]} Qc7 {[%emt 0:03:50]} 11. Qd2 {[%emt 0:10:55]} Rd8 {[%emt 0:07:15]} 12. a4 {[%emt 0:08:38]} b6 {[%emt 0:07:11]} 13. Nd5 {[%emt 0:04:13]} Nxd5 {[%emt 0:02:24]} 14. exd5 {[%emt 0:00:03]} Nf6 {[%emt 0:01:46]} 15. c4 {[%emt 0:01:13]} Re8 {[%emt 0:04:59]} 16. h3 {[%emt 0:14:41]} Bb7 {[%emt 0:06:10]} 17. Re3 {[%emt 0:03:33]} Nd7 {[%emt 0:24:08]} 18. b3 {[%emt 0:07:51]} Nf8 {[%emt 0:27:13]} 19. Rae1 {[%emt 0:18:05]} f6 {[%emt 0:01:01]} 20. Bf4 {[%emt 0:00:28]} Bc8 {[%emt 0:03:12]} 21. g4 {[%emt 0:05:37]} g5 {[%emt 0:00:16]} 22. Bg3 {[%emt 0:02:04]} Ng6 {[%emt 0:00:16]} 23. Bd3 {[%emt 0:00:27]} Kf7 {[%emt 0:01:24]} 24. Bf5 {[%emt 0:01:42]} Bxf5 {[%emt 0:01:56]} 25. Nxf5 {[%emt 0:00:38]} Qd7 {[%emt 0:00:53]} 26. Re6 {[%emt 0:04:22]} Bf8 {[%emt 0:00:32]} 27. h4 {[%emt 0:00:57]} h6 {[%emt 0:00:15]} 28. Qe3 {[%emt 0:01:56]} Ne5 {[%emt 0:00:29]} 29. Bxe5 {[%emt 0:00:25]} dxe5 {[%emt 0:00:10]} 30. hxg5 {[%emt 0:00:32]} hxg5 {[%emt 0:00:17]} 31. Qh3 {[%emt 0:00:10]} 1-0

[Event "23rd OIBM 2019"]
[Site "Gmund am Tegernsee"]
[Date "2019.10.30"]
[Round "5.26"]
[White "Seickel, Ralf"]
[Black "Moehn, Hans"]
[Result "0-1"]
[ECO "A40"]
[WhiteElo "1993"]
[BlackElo "2370"]
[Annotator "RC"]
[PlyCount "106"]
[EventDate "2019.10.17"]
[EventType "swiss"]
[EventCountry "GER"]
[SourceTitle "playchess.com"]
[Source "ChessBase"]
[SourceQuality "1"]
[TimeControl "40/5400+30:1800+30"]

1. d4 {[%emt 0:00:00]} Nf6 {[%emt 0:00:00]} 2. c4 {[%emt 0:00:00]} e6 {[%emt 0:00:07]} 3. g3 {[%emt 0:00:09]} d5 {[%emt 0:00:36]} 4. Nf3 {[%emt 0:00:31]} Bb4+ {[%emt 0:00:57]} 5. Bd2 {[%emt 0:00:41]} Bd6 {[%emt 0:00:11]} 6. Nc3 {[%emt 0:01:44]} c6 {[%emt 0:03:10]} 7. Qc2 {[%emt 0:25:20]} Nbd7 {[%emt 0:01:05]} 8. e4 {[%emt 0:02:42]} dxe4 {[%emt 0:02:14]} 9. Nxe4 {[%emt 0:03:06]} Nxe4 {[%emt 0:00:05]} 10. Qxe4 {[%emt 0:00:06]} Nf6 {[%emt 0:02:59]} 11. Qc2 {[%emt 0:03:35]} b6 {[%emt 0:14:19]} 12. Bg2 {[%emt 0:00:52]} Bb7 {[%emt 0:00:10]} 13. O-O {[%emt 0:01:49]} c5 {[%emt 0:02:28]} 14. Rfe1 {[%emt 0:03:41]} cxd4 {[%emt 0:01:40]} 15. Nxd4 {[%emt 0:01:14]} Bxg2 {[%emt 0:00:46]} 16. Kxg2 {[%emt 0:05:36]} O-O {[%emt 0:00:41]} 17. Nb5 {[%emt 0:07:15]} Be7 {[%emt 0:07:50]} 18. Rad1 {[%emt 0:01:05]} Qc8 {[%emt 0:00:45]} 19. b3 {[%emt 0:02:58]} Qb7+ {[%emt 0:04:52]} 20. f3 {[%emt 0:05:54]} a6 {[%emt 0:00:27]} 21. Nc3 {[%emt 0:06:57]} b5 {[%emt 0:00:28]} 22. Ne4 {[%emt 0:07:31]} Nxe4 {[%emt 0:01:02]} 23. Rxe4 {[%emt 0:01:56]} Rac8 {[%emt 0:02:49]} 24. Be3 {[%emt 0:03:11]} Qc6 {[%emt 0:03:27]} 25. Qe2 {[%emt 0:02:45]} h6 {[%emt 0:05:31]} 26. Bf2 {[%emt 0:00:46]} Rc7 {[%emt 0:01:43]} 27. Qd3 {[%emt 0:07:27]} Rd8 {[%emt 0:03:17]} 28. Qe2 {[%emt 0:00:06]} Rdc8 {[%emt 0:00:16]} 29. Red4 {[%emt 0:01:38]} Qb7 {[%emt 0:01:03]} 30. cxb5 {[%emt 0:00:42]} axb5 {[%emt 0:00:29]} 31. R1d2 {[%emt 0:00:40]} b4 {[%emt 0:02:04]} 32. Qe4 {[%emt 0:00:58]} Qb5 {[%emt 0:07:48]} 33. Qd3 {[%emt 0:00:12]} Qxd3 {[%emt 0:01:08]} 34. R4xd3 {[%emt 0:00:40]} Rc2 {[%emt 0:00:09]} 35. Be3 {[%emt 0:00:53]} e5 {[%emt 0:01:34]} 36. Rxc2 {[%emt 0:00:28]} Rxc2+ {[%emt 0:00:04]} 37. Rd2 {[%emt 0:00:08]} Rc3 {[%emt 0:08:15]} 38. Kf2 {[%emt 0:01:08]} f5 {[%emt 0:00:40]} 39. Ke2 {[%emt 0:01:03]} Kf7 {[%emt 0:00:21]} 40. Rd3 {[%emt 0:00:32]} Rc2+ {[%emt 0:03:22]} 41. Rd2 {[%emt 0:30:10]} Rc6 {[%emt 0:30:22]} 42. Rd7 {[%emt 0:00:00]} Ke6 {[%emt 0:00:00]} 43. Ra7 {[%emt 0:00:00]} Rc2+ {[%emt 0:00:00]} 44. Kd3 {[%emt 0:00:00]} Rc3+ {[%emt 0:00:00]} 45. Kd2 {[%emt 0:00:00]} f4 {[%emt 0:00:00]} 46. gxf4 {[%emt 0:00:00]} exf4 {[%emt 0:00:00]} 47. Bd4 {[%emt 0:00:00]} Rxf3 {[%emt 0:00:00]} 48. Bxg7 {[%emt 0:00:00]} Rf2+ {[%emt 0:00:00]} 49. Kd3 {[%emt 0:00:00]} Rxh2 {[%emt 0:00:00]} 50. Ra6+ {[%emt 0:00:00]} Kf5 {[%emt 0:00:00]} 51. Bxh6 {[%emt 0:00:00]} Rh3+ {[%emt 0:00:00]} 52. Ke2 {[%emt 0:01:03]} f3+ {[%emt 0:01:26]} 53. Kf1 {[%emt 0:05:52]} Bc5 {[%emt 0:00:42]} 0-1

[Event "23rd OIBM 2019"]
[Site "Gmund am Tegernsee"]
[Date "2019.10.30"]
[Round "5.27"]
[White "Schultz, Andreas"]
[Black "Nasuta, Grzegorz"]
[Result "0-1"]
[ECO "D80"]
[WhiteElo "2176"]
[BlackElo "2534"]
[Annotator "ChessBase"]
[PlyCount "44"]
[EventDate "2019.10.17"]
[EventType "swiss"]
[EventCountry "GER"]
[SourceTitle "playchess.com"]
[Source "ChessBase"]
[SourceQuality "1"]
[TimeControl "40/5400+30:1800+30"]

1. d4 {[%emt 0:00:00]} Nf6 {[%emt 0:00:00]} 2. c4 {[%emt 0:00:00]} g6 {[%emt 0:00:00]} 3. Nc3 {[%emt 0:00:00]} d5 {[%emt 0:00:00]} 4. Bg5 {[%emt 0:00:03]} Ne4 {[%emt 0:00:00]} 5. Bh4 {[%emt 0:00:08]} g5 {[%emt 0:00:00]} 6. Nxe4 {[%emt 0:09:18]} dxe4 {[%emt 0:00:30]} 7. Bxg5 {[%emt 0:03:20]} Bg7 {[%emt 0:00:13]} 8. Qd2 {[%emt 0:01:07]} Qxd4 {[%emt 0:01:41]} 9. Rd1 {[%emt 0:02:55]} Nc6 {[%emt 0:03:11]} 10. b3 {[%emt 0:06:46]} Be6 {[%emt 0:18:18]} 11. Qxd4 {[%emt 0:10:46]} Bxd4 {[%emt 0:04:39]} 12. Bd2 {[%emt 0:01:10]} O-O-O {[%emt 0:13:35]} 13. e3 {[%emt 0:04:40]} Bc5 {[%emt 0:02:18]} 14. Ne2 {[%emt 0:00:45]} Bg4 {[%emt 0:03:12]} 15. Rc1 {[%emt 0:05:44]} Ba3 {[%emt 0:03:00]} 16. Rb1 {[%emt 0:04:05]} Nb4 {[%emt 0:00:35]} 17. f3 {[%emt 0:00:41]} Nc2+ {[%emt 0:13:07]} 18. Kf2 {[%emt 0:01:10]} Rxd2 {[%emt 0:00:05]} 19. fxg4 {[%emt 0:00:10]} Bc5 {[%emt 0:00:05]} 20. Kg3 {[%emt 0:00:16]} Nxe3 {[%emt 0:00:29]} 21. Nf4 {[%emt 0:02:25]} Rg8 {[%emt 0:01:31]} 22. h3 {[%emt 0:00:20]} Bd6 {[%emt 0:00:16]} 0-1

[Event "23rd OIBM 2019"]
[Site "Gmund am Tegernsee"]
[Date "2019.10.30"]
[Round "5.28"]
[White "Ries, Berthold"]
[Black "Danielmeier, Ralf"]
[Result "0-1"]
[ECO "B01"]
[WhiteElo "1854"]
[BlackElo "2054"]
[Annotator "NA"]
[PlyCount "101"]
[EventDate "2019.10.17"]
[EventType "swiss"]
[EventCountry "GER"]
[SourceTitle "playchess.com"]
[Source "ChessBase"]
[SourceQuality "1"]
[TimeControl "40/5400+30:1800+30"]

1. e4 {[%emt 0:00:00]} d5 {[%emt 0:00:00]} 2. exd5 {[%emt 0:00:00]} Qxd5 {[%emt 0:00:00]} 3. Nc3 {[%emt 0:00:00]} Qa5 {[%emt 0:00:06]} 4. d4 {[%emt 0:00:20]} Nf6 {[%emt 0:00:18]} 5. Nf3 {[%emt 0:00:08]} Bf5 {[%emt 0:00:23]} 6. Bd2 {[%emt 0:02:25]} e6 {[%emt 0:00:50]} 7. Bc4 {[%emt 0:00:40]} Bb4 {[%emt 0:00:25]} 8. O-O {[%emt 0:01:51]} Nc6 {[%emt 0:00:54]} 9. a3 {[%emt 0:11:13]} Bxc3 {[%emt 0:02:28]} 10. bxc3 {[%emt 0:05:44]} O-O {[%emt 0:05:14]} 11. Rb1 {[%emt 0:07:42]} Rab8 {[%emt 0:03:20]} 12. Bb5 {[%emt 0:03:48]} Bg4 {[%emt 0:15:58]} 13. h3 {[%emt 0:01:23]} Bxf3 {[%emt 0:00:29]} 14. Qxf3 {[%emt 0:00:13]} Nxd4 {[%emt 0:00:31]} 15. cxd4 {[%emt 0:03:07]} Qxd2 {[%emt 0:00:39]} 16. Bd3 {[%emt 0:01:12]} c6 {[%emt 0:01:38]} 17. c3 {[%emt 0:09:42]} Qg5 {[%emt 0:02:55]} 18. Rb3 {[%emt 0:04:30]} Qd5 {[%emt 0:03:19]} 19. Qxd5 {[%emt 0:02:22]} cxd5 {[%emt 0:02:17]} 20. Rfb1 {[%emt 0:00:56]} Rfc8 {[%emt 0:00:53]} 21. Rxb7 {[%emt 0:00:37]} Rxb7 {[%emt 0:00:35]} 22. Rxb7 {[%emt 0:00:01]} g6 {[%emt 0:01:03]} 23. Rxa7 {[%emt 0:01:20]} Rxc3 {[%emt 0:00:34]} 24. Bb5 {[%emt 0:00:19]} Ne4 {[%emt 0:03:52]} 25. f3 {[%emt 0:02:46]} Rc1+ {[%emt 0:00:33]} 26. Kh2 {[%emt 0:00:45]} Nd6 {[%emt 0:00:24]} 27. a4 {[%emt 0:04:11]} Nxb5 {[%emt 0:00:59]} 28. axb5 {[%emt 0:00:19]} Rb1 {[%emt 0:00:13]} 29. Rb7 {[%emt 0:00:19]} Rb4 {[%emt 0:00:26]} 30. b6 {[%emt 0:01:15]} Rxd4 {[%emt 0:00:35]} 31. Rc7 {[%emt 0:01:15]} Rb4 {[%emt 0:01:15]} 32. b7 {[%emt 0:00:08]} Kg7 {[%emt 0:00:11]} 33. Kg3 {[%emt 0:00:27]} h5 {[%emt 0:00:53]} 34. f4 {[%emt 0:02:20]} Kf6 {[%emt 0:01:10]} 35. Kf3 {[%emt 0:00:13]} Rb3+ {[%emt 0:03:44]} 36. Ke2 {[%emt 0:00:30]} h4 {[%emt 0:02:49]} 37. Kd2 {[%emt 0:00:34]} g5 {[%emt 0:04:39]} 38. fxg5+ {[%emt 0:00:52]} Kxg5 {[%emt 0:00:08]} 39. Rxf7 {[%emt 0:00:26]} Kg6 {[%emt 0:00:26]} 40. Re7 {[%emt 0:00:16]} Kf6 {[%emt 0:00:40]} 41. Rh7 {[%emt 0:30:43]} Kg5 {[%emt 0:33:42]} 42. Kc2 {[%emt 0:01:02]} Rb5 {[%emt 0:02:15]} 43. Kc3 {[%emt 0:03:46]} e5 {[%emt 0:01:44]} 44. Rd7 {[%emt 0:01:18]} Kf4 {[%emt 0:00:44]} 45. Rg7 {[%emt 0:00:39]} Ke3 {[%emt 0:01:32]} 46. Rh7 {[%emt 0:05:20]} e4 {[%emt 0:02:45]} 47. g4 {[%emt 0:02:08]} hxg3 {[%emt 0:00:45]} 48. Rg7 {[%emt 0:00:27]} Kf3 {[%emt 0:00:31]} 49. h4 {[%emt 0:00:13]} g2 {[%emt 0:00:16]} 50. h5 {[%emt 0:00:02]} Rxb7 {[%emt 0:00:19]} 51. Kd4 0-1

[Event "23rd OIBM 2019"]
[Site "Gmund am Tegernsee"]
[Date "2019.10.30"]
[Round "5.31"]
[White "Badelka, Olga"]
[Black "Bopp, Thomas"]
[Result "1-0"]
[ECO "A43"]
[WhiteElo "2413"]
[BlackElo "2156"]
[Annotator "NA"]
[PlyCount "57"]
[EventDate "2019.10.17"]
[EventType "swiss"]
[EventCountry "GER"]
[SourceTitle "playchess.com"]
[Source "ChessBase"]
[SourceQuality "1"]
[TimeControl "40/5400+30:1800+30"]

1. d4 {[%emt 0:00:00]} c5 {[%emt 0:00:00]} 2. d5 {[%emt 0:00:00]} g6 {[%emt 0:00:01]} 3. c4 {[%emt 0:00:13]} Bg7 {[%emt 0:00:22]} 4. e4 {[%emt 0:01:21]} d6 {[%emt 0:00:08]} 5. Nc3 {[%emt 0:00:17]} Nf6 {[%emt 0:00:09]} 6. Bd3 {[%emt 0:10:00]} O-O {[%emt 0:00:16]} 7. h3 {[%emt 0:01:34]} a6 {[%emt 0:05:57]} 8. a4 {[%emt 0:00:07]} e6 {[%emt 0:00:20]} 9. Nf3 {[%emt 0:00:23]} Nbd7 {[%emt 0:01:26]} 10. O-O {[%emt 0:08:58]} e5 {[%emt 0:00:17]} 11. a5 {[%emt 0:00:06]} Nh5 {[%emt 0:04:15]} 12. Re1 {[%emt 0:00:25]} h6 {[%emt 0:05:53]} 13. Bf1 {[%emt 0:04:32]} Ndf6 {[%emt 0:09:21]} 14. Bd2 {[%emt 0:03:49]} Nh7 {[%emt 0:01:31]} 15. Na4 {[%emt 0:00:40]} Nf4 {[%emt 0:04:35]} 16. Nb6 {[%emt 0:00:25]} Rb8 {[%emt 0:00:08]} 17. b4 Ng5 {[%emt 0:03:33]} 18. Nxg5 {[%emt 0:12:28]} Qxg5 {[%emt 0:12:21]} 19. Nxc8 {[%emt 0:03:24]} Rbxc8 {[%emt 0:00:16]} 20. g3 {[%emt 0:00:29]} f5 {[%emt 0:00:30]} 21. bxc5 {[%emt 0:13:46]} fxe4 {[%emt 0:07:14]} 22. Ra3 {[%emt 0:00:53]} Rxc5 {[%emt 0:04:40]} 23. h4 {[%emt 0:00:26]} Qf5 {[%emt 0:01:05]} 24. gxf4 {[%emt 0:00:06]} exf4 {[%emt 0:00:36]} 25. Bh3 {[%emt 0:00:16]} Qf6 {[%emt 0:01:40]} 26. Rxe4 {[%emt 0:00:51]} Qxh4 {[%emt 0:00:28]} 27. Qg4 {[%emt 0:00:34]} Qxg4+ {[%emt 0:00:49]} 28. Bxg4 {[%emt 0:00:04]} Be5 {[%emt 0:00:40]} 29. Bb4 {[%emt 0:00:29]} 1-0

[Event "23rd OIBM 2019"]
[Site "Gmund am Tegernsee"]
[Date "2019.10.30"]
[Round "5.32"]
[White "Loew, Gerald"]
[Black "Manu David Suthandram R"]
[Result "1/2-1/2"]
[ECO "B20"]
[WhiteElo "2162"]
[BlackElo "2403"]
[Annotator "NA"]
[PlyCount "63"]
[EventDate "2019.10.17"]
[EventType "swiss"]
[EventCountry "GER"]
[SourceTitle "playchess.com"]
[Source "ChessBase"]
[SourceQuality "1"]
[TimeControl "40/5400+30:1800+30"]

1. e4 {[%emt 0:00:00]} c5 {[%emt 0:00:00]} 2. Be2 {[%emt 0:00:00]} Nc6 {[%emt 0:00:13]} 3. f4 {[%emt 0:00:15]} e6 {[%emt 0:01:40]} 4. Nf3 {[%emt 0:00:24]} d5 {[%emt 0:00:09]} 5. d3 {[%emt 0:00:51]} Nf6 {[%emt 0:00:34]} 6. e5 {[%emt 0:00:55]} Nd7 {[%emt 0:00:14]} 7. c4 {[%emt 0:01:02]} d4 {[%emt 0:05:39]} 8. Nbd2 {[%emt 0:04:04]} Be7 {[%emt 0:00:11]} 9. Ne4 {[%emt 0:01:22]} O-O {[%emt 0:01:37]} 10. O-O {[%emt 0:00:20]} f6 {[%emt 0:00:59]} 11. exf6 {[%emt 0:01:21]} Nxf6 {[%emt 0:00:08]} 12. Nfg5 {[%emt 0:01:21]} Nxe4 {[%emt 0:02:15]} 13. Nxe4 {[%emt 0:00:16]} Bd7 {[%emt 0:01:41]} 14. Bg4 {[%emt 0:04:27]} Qc8 {[%emt 0:08:26]} 15. Qe2 {[%emt 0:07:19]} e5 {[%emt 0:12:53]} 16. Bxd7 {[%emt 0:00:33]} Qxd7 {[%emt 0:00:08]} 17. Bd2 {[%emt 0:02:13]} exf4 {[%emt 0:03:19]} 18. Bxf4 {[%emt 0:02:17]} Rf5 {[%emt 0:06:18]} 19. a3 {[%emt 0:08:01]} Raf8 {[%emt 0:00:42]} 20. Bg3 {[%emt 0:06:11]} a6 {[%emt 0:02:22]} 21. Rxf5 {[%emt 0:06:11]} Rxf5 {[%emt 0:01:18]} 22. Rf1 {[%emt 0:01:25]} Rxf1+ {[%emt 0:03:58]} 23. Kxf1 {[%emt 0:01:49]} g6 {[%emt 0:09:37]} 24. Ke1 {[%emt 0:02:46]} Kg7 {[%emt 0:01:37]} 25. h3 {[%emt 0:07:06]} h5 {[%emt 0:06:48]} 26. Bf4 {[%emt 0:04:36]} Qf5 {[%emt 0:02:58]} 27. Bc7 {[%emt 0:04:47]} b5 {[%emt 0:08:53]} 28. b3 {[%emt 0:03:38]} Qd7 {[%emt 0:00:13]} 29. Bb6 {[%emt 0:12:23]} Qf5 {[%emt 0:07:15]} 30. Bc7 {[%emt 0:01:52]} Qd7 {[%emt 0:00:29]} 31. Bb6 {[%emt 0:00:20]} Qf5 {[%emt 0:00:15]} 32. Bc7 {[%emt 0:00:13]} 1/2-1/2

[Event "23rd OIBM 2019"]
[Site "Gmund am Tegernsee"]
[Date "2019.10.30"]
[Round "5.33"]
[White "Miller, Eduard"]
[Black "Schatz, Christian"]
[Result "1-0"]
[ECO "A25"]
[WhiteElo "2402"]
[BlackElo "2152"]
[Annotator "NA"]
[PlyCount "93"]
[EventDate "2019.10.17"]
[EventType "swiss"]
[EventCountry "GER"]
[SourceTitle "playchess.com"]
[Source "ChessBase"]
[SourceQuality "1"]
[TimeControl "40/5400+30:1800+30"]

1. c4 {[%emt 0:00:00]} e5 {[%emt 0:00:00]} 2. Nc3 {[%emt 0:00:00]} Nc6 {[%emt 0:00:01]} 3. g3 {[%emt 0:00:24]} g6 {[%emt 0:00:25]} 4. Bg2 {[%emt 0:00:09]} Bg7 {[%emt 0:00:13]} 5. Rb1 {[%emt 0:00:22]} a5 {[%emt 0:00:30]} 6. e4 {[%emt 0:06:18]} d6 {[%emt 0:00:42]} 7. Nge2 {[%emt 0:00:44]} Nge7 {[%emt 0:00:52]} 8. O-O {[%emt 0:00:33]} O-O {[%emt 0:00:24]} 9. d3 {[%emt 0:03:44]} Be6 {[%emt 0:01:44]} 10. Be3 {[%emt 0:01:22]} Nd4 {[%emt 0:00:48]} 11. Bxd4 {[%emt 0:01:51]} exd4 {[%emt 0:00:09]} 12. Nb5 {[%emt 0:00:10]} c5 {[%emt 0:02:21]} 13. Nf4 {[%emt 0:01:25]} Nc6 {[%emt 0:04:35]} 14. Nxe6 {[%emt 0:02:49]} fxe6 {[%emt 0:00:07]} 15. Bh3 {[%emt 0:00:30]} Qe7 {[%emt 0:01:15]} 16. f4 {[%emt 0:00:44]} Bh6 {[%emt 0:07:10]} 17. a3 {[%emt 0:02:49]} e5 {[%emt 0:06:48]} 18. f5 {[%emt 0:02:19]} gxf5 {[%emt 0:01:53]} 19. Bxf5 {[%emt 0:00:35]} Rad8 {[%emt 0:05:08]} 20. Kg2 {[%emt 0:11:37]} Kh8 {[%emt 0:01:08]} 21. b3 {[%emt 0:10:33]} Qg7 {[%emt 0:06:20]} 22. Qh5 {[%emt 0:02:55]} Ne7 {[%emt 0:02:17]} 23. Bh3 {[%emt 0:07:39]} Ng6 {[%emt 0:02:19]} 24. Bg4 {[%emt 0:01:51]} Be3 {[%emt 0:00:42]} 25. Rxf8+ {[%emt 0:01:37]} Rxf8 {[%emt 0:00:18]} 26. Rf1 {[%emt 0:00:33]} Ne7 {[%emt 0:10:09]} 27. Rf3 {[%emt 0:04:12]} Rxf3 {[%emt 0:02:16]} 28. Bxf3 {[%emt 0:00:06]} Ng6 {[%emt 0:00:12]} 29. Qg4 {[%emt 0:02:38]} Qe7 {[%emt 0:02:42]} 30. h4 {[%emt 0:01:14]} Nf8 {[%emt 0:02:05]} 31. Qf5 {[%emt 0:00:45]} Kg7 {[%emt 0:02:14]} 32. Bg4 {[%emt 0:01:04]} Kh6 {[%emt 0:02:49]} 33. Qc8 {[%emt 0:02:37]} Ng6 {[%emt 0:09:30]} 34. Qb8 {[%emt 0:05:11]} Nxh4+ {[%emt 0:02:23]} 35. gxh4 {[%emt 0:00:11]} Qxh4 {[%emt 0:00:23]} 36. Qxd6+ {[%emt 0:00:20]} Kg5 {[%emt 0:00:27]} 37. Qxe5+ {[%emt 0:00:08]} Kh6 {[%emt 0:01:45]} 38. Qd6+ {[%emt 0:00:45]} Kg7 {[%emt 0:00:58]} 39. Qc7+ {[%emt 0:00:08]} Kh6 {[%emt 0:01:03]} 40. Qb6+ {[%emt 0:00:16]} Kg7 {[%emt 0:00:51]} 41. Qxb7+ {[%emt 0:30:07]} Kh6 {[%emt 0:30:45]} 42. Qc6+ {[%emt 0:00:20]} Kg5 {[%emt 0:03:26]} 43. Qxc5+ {[%emt 0:00:40]} Kh6 {[%emt 0:00:05]} 44. Qf8+ {[%emt 0:00:04]} Kg6 {[%emt 0:00:31]} 45. Bf5+ {[%emt 0:00:41]} Kg5 {[%emt 0:00:46]} 46. Qe7+ {[%emt 0:00:11]} Kh5 47. Qe5 1-0

[Event "23rd OIBM 2019"]
[Site "Gmund am Tegernsee"]
[Date "2019.10.30"]
[Round "5.34"]
[White "Schaefer, Michael"]
[Black "Piscopo, Pierluigi"]
[Result "1/2-1/2"]
[ECO "A48"]
[WhiteElo "2160"]
[BlackElo "2398"]
[Annotator "ChessBase"]
[PlyCount "75"]
[EventDate "2019.10.17"]
[EventType "swiss"]
[EventCountry "GER"]
[SourceTitle "playchess.com"]
[Source "ChessBase"]
[SourceQuality "1"]
[TimeControl "40/5400+30:1800+30"]

1. d4 {[%emt 0:00:00]} Nf6 {[%emt 0:00:00]} 2. Nf3 {[%emt 0:00:00]} g6 {[%emt 0:00:20]} 3. c4 {[%emt 0:00:00]} Bg7 {[%emt 0:06:09]} 4. Nc3 {[%emt 0:00:17]} O-O {[%emt 0:00:07]} 5. Bg5 {[%emt 0:00:11]} c5 {[%emt 0:03:34]} 6. e3 {[%emt 0:02:12]} cxd4 {[%emt 0:01:53]} 7. exd4 {[%emt 0:03:18]} d5 {[%emt 0:00:39]} 8. Bxf6 {[%emt 0:00:12]} Bxf6 {[%emt 0:00:13]} 9. cxd5 {[%emt 0:00:20]} Nd7 {[%emt 0:04:15]} 10. Bc4 {[%emt 0:01:26]} Nb6 {[%emt 0:00:37]} 11. Bb3 {[%emt 0:00:06]} a5 {[%emt 0:10:06]} 12. a3 {[%emt 0:08:09]} Bg4 {[%emt 0:06:03]} 13. O-O {[%emt 0:05:09]} Nc8 {[%emt 0:00:12]} 14. h3 {[%emt 0:25:04]} Bxf3 {[%emt 0:01:02]} 15. Qxf3 {[%emt 0:00:05]} Nd6 {[%emt 0:00:49]} 16. Rad1 {[%emt 0:02:34]} Rc8 {[%emt 0:09:05]} 17. Rfe1 {[%emt 0:10:58]} Qb6 {[%emt 0:11:07]} 18. Na4 {[%emt 0:02:14]} Qa7 {[%emt 0:00:07]} 19. Nc5 {[%emt 0:02:37]} Bxd4 {[%emt 0:11:01]} 20. Rxd4 {[%emt 0:00:19]} Qxc5 {[%emt 0:00:16]} 21. Rd2 {[%emt 0:01:15]} Rc7 {[%emt 0:02:21]} 22. g4 {[%emt 0:06:26]} Rfc8 {[%emt 0:03:56]} 23. h4 {[%emt 0:01:25]} a4 {[%emt 0:02:08]} 24. Ba2 {[%emt 0:01:20]} Qa5 {[%emt 0:04:04]} 25. Rde2 {[%emt 0:04:23]} Rc1 {[%emt 0:12:58]} 26. Qe3 {[%emt 0:01:06]} Rxe1+ {[%emt 0:03:10]} 27. Rxe1 {[%emt 0:00:39]} Qc5 {[%emt 0:00:03]} 28. Qxc5 {[%emt 0:07:30]} Rxc5 {[%emt 0:00:02]} 29. Rxe7 {[%emt 0:00:07]} Rc2 {[%emt 0:05:50]} 30. Rd7 {[%emt 0:00:13]} Rxb2 {[%emt 0:00:07]} 31. Rxd6 {[%emt 0:00:06]} Rxa2 {[%emt 0:00:03]} 32. Rb6 {[%emt 0:00:32]} Rxa3 {[%emt 0:00:27]} 33. Rxb7 {[%emt 0:00:08]} Rd3 {[%emt 0:00:30]} 34. Ra7 {[%emt 0:00:41]} Rd4 {[%emt 0:02:04]} 35. f3 {[%emt 0:00:40]} Kg7 {[%emt 0:00:00]} 36. Kf2 {[%emt 0:01:35]} h5 {[%emt 0:00:44]} 37. Ke3 {[%emt 0:00:56]} Rxd5 {[%emt 0:00:33]} 38. Rxa4 {[%emt 0:00:13]} 1/2-1/2